fUST/lending_fUST_20250318
["ID","MTS","AMOUNT","RATE_DAILY","PERIOD"]
[356330058,1742286656499,-500.0,8.493e-05,2]
[356330059,1742286656509,-7811.31,8.493e-05,2]
[356330060,1742286656519,-286.028766,8.493e-05,2]
[356330061,1742286656529,-500.0,8.493e-05,2]
[356330062,1742286656539,-286.028766,8.493e-05,2]
[356330063,1742286656665,-500.0,8.493e-05,2]
[356330064,1742286656676,-500.0,8.493e-05,2]
[356330065,1742286656685,-286.028766,8.493e-05,2]
[356330066,1742286656694,-500.0,8.493e-05,2]
[356330067,1742286656704,-286.028766,8.493e-05,2]
[356330068,1742286656714,-500.0,8.493e-05,2]
[356330069,1742286656723,-286.028766,8.493e-05,2]
[356330070,1742286656733,-1219.17,8.493e-05,2]
[356330071,1742286656743,-286.028766,8.493e-05,2]
[356330072,1742286656753,-500.0,8.493e-05,2]
[356330073,1742286656765,-286.028766,8.493e-05,2]
[356330074,1742286656777,-286.028766,8.493e-05,2]
[356330075,1742286656788,-500.0,8.493e-05,2]
[356330076,1742286656798,-5865.91,8.493e-05,2]
[356330077,1742286656807,-500.0,8.493e-05,2]
[356330078,1742286656817,-500.0,8.493e-05,2]
[356330079,1742286656827,-1567.61,8.493e-05,2]
[356330080,1742286656837,-500.0,8.493e-05,2]
[356330081,1742286656847,-500.0,8.493e-05,2]
[356330082,1742286656857,-500.0,8.493e-05,2]
[356330083,1742286656866,-2101.67,8.493e-05,2]
[356330084,1742286656876,-500.0,8.493e-05,2]
[356330085,1742286656885,-1103.93,8.493e-05,2]
[356330086,1742286656896,-500.0,8.493e-05,2]
[356330087,1742286656906,-500.0,8.493e-05,2]
[356330088,1742286656916,-500.0,8.493e-05,2]
[356330089,1742286656926,-500.0,8.493e-05,2]
[356330090,1742286656936,-500.0,8.493e-05,2]
[356330091,1742286656945,-1658.96,8.493e-05,2]
[356330092,1742286656956,-500.0,8.493e-05,2]
[356330093,1742286656966,-495.22766071,8.493e-05,2]
[356330094,1742286656978,-98083.34,8.493e-05,2]
[356330095,1742286656988,-504.30883336,8.493e-05,2]
[356330096,1742286656999,-500.0,8.493e-05,2]
[356330097,1742286657010,-500.0,8.493e-05,2]
[356330098,1742286657019,-656.05,8.493e-05,2]
[356330099,1742286657029,-500.0,8.493e-05,2]
[356330100,1742286657039,-500.0,8.493e-05,2]
[356330101,1742286657050,-2562.21,8.493e-05,2]
[356330102,1742286657060,-3833.09,8.493e-05,2]
[356330103,1742286657070,-500.0,8.493e-05,2]
[356330104,1742286657080,-1785.76,8.493e-05,2]
[356330105,1742286657090,-1141.65,8.493e-05,2]
[356330106,1742286657100,-151.0,8.493e-05,2]
[356330107,1742286657112,-151.0,8.493e-05,2]
[356330108,1742286657132,-151.0,8.493e-05,2]
[356330109,1742286657142,-151.0,8.493e-05,2]
[356330110,1742286657152,-500.0,8.493e-05,2]
[356330111,1742286657162,-6740.53,8.493e-05,2]
[356330112,1742286657173,-519.58623753,8.493e-05,2]
[356330113,1742286657183,-1590.13,8.493e-05,2]
[356330114,1742286657193,-500.0,8.493e-05,2]
[356330115,1742286657203,-700.85,8.493e-05,2]
[356330116,1742286657213,-500.0,8.493e-05,2]
[356330117,1742286657223,-500.0,8.493e-05,2]
[356330118,1742286657233,-500.0,8.493e-05,2]
[356330119,1742286657243,-9675.79,8.493e-05,2]
[356330120,1742286657254,-500.0,8.493e-05,2]
[356330121,1742286657264,-500.0,8.493e-05,2]
[356330122,1742286657274,-500.0,8.493e-05,2]
[356330123,1742286657284,-500.0,8.493e-05,2]
[356330124,1742286657294,-500.0,8.493e-05,2]
[356330125,1742286657304,-884.32,8.493e-05,2]
[356330126,1742286657314,-2187.92,8.493e-05,2]
[356330127,1742286657324,-3166.23,8.493e-05,2]
[356330128,1742286657334,-500.0,8.493e-05,2]
[356330129,1742286657344,-500.0,8.493e-05,2]
[356330130,1742286657353,-522.85058277,8.493e-05,2]
[356330131,1742286657363,-846.0,8.493e-05,2]
[356330132,1742286657372,-500.0,8.493e-05,2]
[356330133,1742286657382,-500.0,8.493e-05,2]
[356330134,1742286657394,-500.0,8.493e-05,2]
[356330135,1742286657403,-500.0,8.493e-05,2]
[356330136,1742286657413,-500.0,8.493e-05,2]
[356330137,1742286657423,-500.0,8.493e-05,2]
[356330138,1742286657433,-847.69,8.493e-05,2]
[356330139,1742286657443,-500.0,8.493e-05,2]
[356330140,1742286657453,-1476.4,8.493e-05,2]
[356330141,1742286657463,-1068.47,8.493e-05,2]
[356330142,1742286657473,-500.0,8.493e-05,2]
[356330143,1742286657482,-500.0,8.493e-05,2]
[356330144,1742286657492,-2552.77,8.493e-05,2]
[356330145,1742286657502,-500.0,8.493e-05,2]
[356330146,1742286657514,-8078.39,8.493e-05,2]
[356330147,1742286657525,-155.80584051,8.493e-05,2]
[356330148,1742286657536,-574.26,8.493e-05,2]
[356330149,1742286657549,-3125.56,8.493e-05,2]
[356330150,1742286657565,-500.0,8.493e-05,2]
[356330151,1742286657575,-500.0,8.493e-05,2]
[356330152,1742286657585,-483.91116264,8.493e-05,2]
[356330153,1742286657595,-500.0,8.493e-05,2]
[356330154,1742286657605,-500.0,8.493e-05,2]
[356330155,1742286657615,-500.0,8.493e-05,2]
[356330156,1742286657625,-500.0,8.493e-05,2]
[356330157,1742286657635,-2010.1,8.493e-05,2]
[356330158,1742286657645,-890.39,8.493e-05,2]
[356330159,1742286657654,-500.0,8.493e-05,2]
[356330160,1742286657663,-500.0,8.493e-05,2]
[356330161,1742286657673,-500.0,8.493e-05,2]
[356330162,1742286657683,-602.83,8.493e-05,2]
[356330163,1742286657693,-500.0,8.493e-05,2]
[356330164,1742286657702,-500.0,8.493e-05,2]
[356330165,1742286657711,-500.0,8.493e-05,2]
[356330166,1742286657721,-500.0,8.493e-05,2]
[356330167,1742286657730,-500.0,8.493e-05,2]
[356330168,1742286657740,-1746.62516,8.493e-05,2]
[356330169,1742286657750,-1746.62516,8.493e-05,2]
[356330170,1742286657759,-1746.62516,8.493e-05,2]
[356330171,1742286657771,-500.0,8.493e-05,2]
[356330172,1742286657780,-1746.62516,8.493e-05,2]
[356330173,1742286657790,-500.0,8.493e-05,2]
[356330174,1742286657800,-1746.62516,8.493e-05,2]
[356330175,1742286657809,-1746.62516,8.493e-05,2]
[356330176,1742286657819,-1746.62516,8.493e-05,2]
[356330177,1742286657830,-500.0,8.493e-05,2]
[356330178,1742286657840,-1746.62516,8.493e-05,2]
[356330179,1742286657849,-1746.62516,8.493e-05,2]
[356330180,1742286657859,-1746.625162,8.493e-05,2]
[356330181,1742286657867,-500.0,8.493e-05,2]
[356330182,1742286657877,-523.99812802,8.493e-05,2]
[356330183,1742286657887,-500.0,8.493e-05,2]
[356330184,1742286657897,-500.0,8.493e-05,2]
[356330185,1742286657906,-151.0,8.493e-05,2]
[356330186,1742286657915,-151.0,8.493e-05,2]
[356330187,1742286657926,-151.0,8.493e-05,2]
[356330188,1742286657937,-151.0,8.493e-05,2]
[356330189,1742286657947,-151.0,8.493e-05,2]
[356330190,1742286657956,-151.0,8.493e-05,2]
[356330191,1742286657965,-1007.4,8.493e-05,2]
[356330192,1742286657975,-517.90608656,8.493e-05,2]
[356330193,1742286657985,-500.0,8.493e-05,2]
[356330194,1742286657994,-151.0,8.493e-05,2]
[356330195,1742286658003,-151.0,8.493e-05,2]
[356330196,1742286658015,-151.0,8.493e-05,2]
[356330197,1742286658024,-500.0,8.493e-05,2]
[356330198,1742286658034,-151.0,8.493e-05,2]
[356330199,1742286658043,-500.0,8.493e-05,2]
[356330200,1742286658053,-500.0,8.493e-05,2]
[356330201,1742286658062,-500.0,8.493e-05,2]
[356330202,1742286658072,-4662.69,8.493e-05,2]
[356330203,1742286658082,-500.0,8.493e-05,2]
[356330204,1742286658091,-543.39788309,8.493e-05,2]
[356330205,1742286658101,-500.0,8.493e-05,2]
[356330206,1742286658111,-500.0,8.493e-05,2]
[356330207,1742286658124,-500.0,8.493e-05,2]
[356330208,1742286658134,-500.0,8.493e-05,2]
[356330209,1742286658143,-516.51556047,8.493e-05,2]
[356330210,1742286658152,-501.849343,8.493e-05,2]
[356330211,1742286658162,-1611.39,8.493e-05,2]
[356330212,1742286658172,-500.0,8.493e-05,2]
[356330213,1742286658181,-642.65,8.493e-05,2]
[356330214,1742286658192,-563.81196796,8.493e-05,2]
[356330215,1742286658202,-505.84962363,8.493e-05,2]
[356330216,1742286658212,-500.0,8.493e-05,2]
[356330217,1742286658222,-500.0,8.493e-05,2]
[356330218,1742286658232,-628.53,8.493e-05,2]
[356330219,1742286658241,-158.107514,8.493e-05,2]
[356330220,1742286658251,-158.107514,8.493e-05,2]
[356330221,1742286658261,-500.0,8.493e-05,2]
[356330222,1742286658271,-158.107514,8.493e-05,2]
[356330223,1742286658281,-158.107514,8.493e-05,2]
[356330224,1742286658291,-1500.8,8.493e-05,2]
[356330225,1742286658300,-158.107514,8.493e-05,2]
[356330226,1742286658310,-500.0,8.493e-05,2]
[356330227,1742286658320,-778.05,8.493e-05,2]
[356330228,1742286658330,-158.107514,8.493e-05,2]
[356330229,1742286658339,-158.107514,8.493e-05,2]
[356330230,1742286658349,-500.0,8.493e-05,2]
[356330231,1742286658358,-158.107514,8.493e-05,2]
[356330232,1742286658368,-158.107514,8.493e-05,2]
[356330233,1742286658378,-158.107522,8.493e-05,2]
[356330234,1742286658387,-500.0,8.493e-05,2]
[356330235,1742286658396,-663.29,8.493e-05,2]
[356330236,1742286658406,-274.43862114,8.493e-05,2]
[356330237,1742286658415,-690.44,8.493e-05,2]
[356330238,1742286658425,-348.73343139,8.493e-05,2]
[356330239,1742286658435,-151.0,8.493e-05,2]
[356330240,1742286658443,-151.0,8.493e-05,2]
[356330241,1742286658452,-500.0,8.493e-05,2]
[356330242,1742286658570,-151.0,8.493e-05,2]
[356330243,1742286658580,-159.191502,8.493e-05,2]
[356330244,1742286658590,-500.0,8.493e-05,2]
[356330245,1742286658599,-500.0,8.493e-05,2]
[356330246,1742286658609,-172.022726,8.499e-05,2]
[356330247,1742286658619,-20000.0,8.5e-05,2]
[356330248,1742286658628,-151.0,8.5e-05,2]
[356330249,1742286658638,-500.0,8.52e-05,2]
[356330250,1742286658647,-500.0,8.52e-05,2]
[356330251,1742286658656,-746.14595463,8.544e-05,2]
[356330252,1742286658666,-500.0,8.548e-05,2]
[356330253,1742286658675,-500.0,8.548e-05,2]
[356330254,1742286658685,-500.0,8.575e-05,2]
[356330255,1742286658694,-500.0,8.575e-05,2]
[356330256,1742286658704,-773.75335495,8.599e-05,2]
[356330257,1742286658713,-40000.0,8.6e-05,2]
[356330258,1742286658722,-164.302079,8.6e-05,2]
[356330259,1742286658731,-151.0,8.6e-05,2]
[356330260,1742286658740,-168.471203,8.6e-05,2]
[356330261,1742286658750,-223.828454,8.6e-05,2]
[356330262,1742286658759,-223.828454,8.6e-05,2]
[356330263,1742286658769,-320.658099,8.6e-05,2]
[356330264,1742286658778,-320.658099,8.6e-05,2]
[356330265,1742286658787,-282.879337,8.6e-05,2]
[356330266,1742286658797,-286.028766,8.6e-05,2]
[356330267,1742286658806,-286.028766,8.6e-05,2]
[356330268,1742286658815,-151.0,8.602e-05,2]
[356330269,1742286658825,-500.0,8.603e-05,2]
[356330270,1742286658834,-500.0,8.603e-05,2]
[356330271,1742286658844,-12458.93820146,8.62e-05,2]
[356330272,1742286658854,-417.85479977,8.62e-05,2]
[356330273,1742286658863,-160.0,8.62e-05,2]
[356330274,1742286658873,-160.0,8.62e-05,2]
[356330275,1742286658882,-151.0,8.62e-05,2]
[356330276,1742286658892,-243.082454,8.62e-05,2]
[356330277,1742286658902,-243.082454,8.62e-05,2]
[356330278,1742286658912,-500.0,8.63e-05,2]
[356330279,1742286658922,-667.60357361,8.63e-05,2]
[356330280,1742286658932,-472.458,8.63e-05,2]
[356330281,1742286658941,-802.38222908,8.654e-05,2]
[356330282,1742286658951,-500.0,8.657e-05,2]
[356330283,1742286658960,-835.11200367,8.679e-05,2]
[356330284,1742286658969,-513.56120911,8.685e-05,2]
[356330285,1742286658980,-156.587,8.762e-05,2]
[356330286,1742286658989,-58721.93945184,8.766e-05,2]
[356330287,1742286658998,-259135.1941293,8.767e-05,2]
[356330288,1742286659008,-500.0,8.767e-05,2]
[356330289,1742286659019,-289.85129607,8.767e-05,2]
[356330290,1742286659028,-500.0,8.767e-05,2]
[356330291,1742286659037,-500.0,8.767e-05,2]
[356330292,1742286659047,-500.0,8.767e-05,2]
[356330293,1742286659057,-502.89,8.767e-05,2]
[356330294,1742286659067,-500.0,8.767e-05,2]
[356330295,1742286659076,-500.0,8.767e-05,2]
[356330296,1742286659086,-500.0,8.767e-05,2]
[356330297,1742286659095,-553.93830616,8.767e-05,2]
[356330298,1742286659106,-151.553366,8.767e-05,2]
[356330299,1742286659118,-500.0,8.767e-05,2]
[356330300,1742286659129,-500.0,8.767e-05,2]
[356330301,1742286659139,-500.0,8.767e-05,2]
[356330302,1742286659148,-500.0,8.767e-05,2]
[356330303,1742286659159,-500.0,8.767e-05,2]
[356330304,1742286659170,-512.53166914,8.767e-05,2]
[356330305,1742286659179,-500.0,8.767e-05,2]
[356330306,1742286659190,-500.0,8.767e-05,2]
[356330307,1742286659201,-216.44961124,8.767e-05,2]
[356330308,1742286659210,-500.0,8.767e-05,2]
[356330309,1742286659220,-513.37292227,8.767e-05,2]
[356330310,1742286659229,-500.0,8.767e-05,2]
[356330311,1742286659239,-500.0,8.767e-05,2]
[356330312,1742286659249,-500.0,8.767e-05,2]
[356330313,1742286659259,-500.0,8.767e-05,2]
[356330314,1742286659270,-500.0,8.767e-05,2]
[356330315,1742286659280,-500.0,8.767e-05,2]
[356330316,1742286659289,-500.0,8.767e-05,2]
[356330317,1742286659299,-568.63903796,8.767e-05,2]
[356330318,1742286659309,-500.0,8.767e-05,2]
[356330319,1742286659319,-500.0,8.767e-05,2]
[356330320,1742286659328,-500.0,8.767e-05,2]
[356330321,1742286659337,-500.0,8.767e-05,2]
[356330322,1742286659347,-500.0,8.767e-05,2]
[356330323,1742286659357,-500.0,8.767e-05,2]
[356330324,1742286659367,-151.0,8.767e-05,2]
[356330325,1742286659376,-151.0,8.767e-05,2]
[356330326,1742286659386,-500.0,8.767e-05,2]
[356330327,1742286659396,-500.0,8.767e-05,2]
[356330328,1742286659405,-500.0,8.767e-05,2]
[356330329,1742286659414,-500.0,8.767e-05,2]
[356330330,1742286659424,-500.0,8.767e-05,2]
[356330331,1742286659434,-500.0,8.767e-05,2]
[356330332,1742286659443,-493.10719582,8.767e-05,2]
[356330333,1742286659453,-500.0,8.767e-05,2]
[356330334,1742286659463,-508.45736859,8.767e-05,2]
[356330335,1742286659472,-571.88454042,8.767e-05,2]
[356330336,1742286659481,-519.96777121,8.767e-05,2]
[356330337,1742286659491,-243.082454,8.767e-05,2]
[356330338,1742286659501,-243.082454,8.767e-05,2]
[356330339,1742286659511,-500.0,8.767e-05,2]
[356330340,1742286659521,-500.0,8.767e-05,2]
[356330341,1742286659531,-243.082454,8.767e-05,2]
[356330342,1742286659541,-243.082454,8.767e-05,2]
[356330343,1742286659551,-500.0,8.767e-05,2]
[356330344,1742286659561,-500.0,8.767e-05,2]
[356330345,1742286659570,-500.0,8.767e-05,2]
[356330346,1742286659580,-500.0,8.767e-05,2]
[356330347,1742286659590,-413.42670264,8.767e-05,2]
[356330348,1742286659601,-500.0,8.767e-05,2]
[356330349,1742286659611,-500.0,8.767e-05,2]
[356330350,1742286659620,-500.0,8.767e-05,2]
[356330351,1742286659630,-500.0,8.767e-05,2]
[356330352,1742286659639,-500.0,8.767e-05,2]
[356330353,1742286659649,-500.0,8.767e-05,2]
[356330354,1742286659659,-500.0,8.767e-05,2]
[356330355,1742286659669,-500.0,8.767e-05,2]
[356330356,1742286659679,-500.0,8.767e-05,2]
[356330357,1742286659688,-500.0,8.767e-05,2]
[356330358,1742286659698,-500.0,8.767e-05,2]
[356330359,1742286659717,-500.0,8.767e-05,2]
[356330360,1742286659729,-500.0,8.767e-05,2]
[356330361,1742286659739,-500.0,8.767e-05,2]
[356330362,1742286659750,-500.0,8.767e-05,2]
[356330363,1742286659760,-500.0,8.767e-05,2]
[356330364,1742286659770,-246.70883889,8.767e-05,2]
[356330365,1742286659780,-622.72,8.767e-05,2]
[356330366,1742286659791,-917.74,8.767e-05,2]
[356330367,1742286659801,-500.0,8.767e-05,2]
[356330368,1742286659812,-500.0,8.767e-05,2]
[356330369,1742286659822,-500.0,8.767e-05,2]
[356330370,1742286659831,-500.0,8.767e-05,2]
[356330371,1742286659842,-500.0,8.767e-05,2]
[356330372,1742286659851,-500.0,8.767e-05,2]
[356330373,1742286659860,-151.0,8.767e-05,2]
[356330374,1742286659870,-162.009026,8.767e-05,2]
[356330375,1742286659879,-410.60743432,8.767e-05,2]
[356330376,1742286659889,-500.0,8.767e-05,2]
[356330377,1742286659899,-500.0,8.767e-05,2]
[356330378,1742286659911,-500.0,8.767e-05,2]
[356330379,1742286659920,-500.0,8.767e-05,2]
[356330380,1742286659930,-1028.0,8.767e-05,2]
[356330381,1742286659940,-500.0,8.767e-05,2]
[356330382,1742286659950,-500.0,8.767e-05,2]
[356330383,1742286659959,-500.0,8.767e-05,2]
[356330384,1742286659969,-500.0,8.767e-05,2]
[356330385,1742286659979,-500.0,8.767e-05,2]
[356330386,1742286659988,-500.0,8.767e-05,2]
[356330387,1742286659999,-500.0,8.767e-05,2]
[356330388,1742286660010,-1921.6,8.767e-05,2]
[356330389,1742286660021,-500.0,8.767e-05,2]
[356330390,1742286660031,-500.0,8.767e-05,2]
[356330391,1742286660042,-500.0,8.767e-05,2]
[356330392,1742286660052,-653.08,8.767e-05,2]
[356330393,1742286660063,-500.0,8.767e-05,2]
[356330394,1742286660074,-500.0,8.767e-05,2]
[356330395,1742286660085,-2008.81,8.767e-05,2]
[356330396,1742286660095,-500.0,8.767e-05,2]
[356330397,1742286660106,-2178.78,8.767e-05,2]
[356330398,1742286660119,-500.0,8.767e-05,2]
[356330399,1742286660130,-500.0,8.767e-05,2]
[356330400,1742286660141,-2521.8,8.767e-05,2]
[356330401,1742286660152,-500.0,8.767e-05,2]
[356330402,1742286660164,-218.78814441,8.767e-05,2]
[356330403,1742286660174,-500.0,8.767e-05,2]
[356330404,1742286660187,-1276.856988,8.767e-05,2]
[356330405,1742286660198,-529.85,8.767e-05,2]
[356330406,1742286660208,-1276.856988,8.767e-05,2]
[356330407,1742286660361,-500.0,8.767e-05,2]
[356330408,1742286660371,-500.0,8.767e-05,2]
[356330409,1742286660382,-500.0,8.767e-05,2]
[356330410,1742286660393,-500.0,8.767e-05,2]
[356330411,1742286660402,-500.0,8.767e-05,2]
[356330412,1742286660412,-500.0,8.767e-05,2]
[356330413,1742286660422,-500.0,8.767e-05,2]
[356330414,1742286660432,-500.0,8.767e-05,2]
[356330415,1742286660442,-500.0,8.767e-05,2]
[356330416,1742286660452,-500.0,8.767e-05,2]
[356330417,1742286660461,-922.48,8.767e-05,2]
[356330418,1742286660472,-680.36,8.767e-05,2]
[356330419,1742286660482,-500.0,8.767e-05,2]
[356330420,1742286660491,-500.0,8.767e-05,2]
[356330421,1742286660501,-682.75,8.767e-05,2]
[356330422,1742286660511,-500.0,8.767e-05,2]
[356330423,1742286660520,-500.0,8.767e-05,2]
[356330424,1742286660530,-610.02,8.767e-05,2]
[356330425,1742286660540,-500.0,8.767e-05,2]
[356330426,1742286660549,-500.0,8.767e-05,2]
[356330427,1742286660559,-522.72074227,8.767e-05,2]
[356330428,1742286660569,-674.0,8.767e-05,2]
[356330429,1742286660580,-2151.35,8.767e-05,2]
[356330430,1742286660590,-1105.69,8.767e-05,2]
[356330431,1742286660599,-500.0,8.767e-05,2]
[356330432,1742286660609,-500.0,8.767e-05,2]
[356330433,1742286660619,-500.0,8.767e-05,2]
[356330434,1742286660628,-500.0,8.767e-05,2]
[356330435,1742286660638,-500.0,8.767e-05,2]
[356330436,1742286660648,-500.0,8.767e-05,2]
[356330437,1742286660658,-1281.22,8.767e-05,2]
[356330438,1742286660668,-500.0,8.767e-05,2]
[356330439,1742286660678,-500.0,8.767e-05,2]
[356330440,1742286660688,-500.0,8.767e-05,2]
[356330441,1742286660697,-500.0,8.767e-05,2]
[356330442,1742286660707,-223.828454,8.767e-05,2]
[356330443,1742286660716,-223.828454,8.767e-05,2]
[356330444,1742286660726,-223.828454,8.767e-05,2]
[356330445,1742286660735,-346.50190776,8.767e-05,2]
[356330446,1742286660745,-500.0,8.767e-05,2]
[356330447,1742286660754,-500.0,8.767e-05,2]
[356330448,1742286660766,-500.0,8.767e-05,2]
[356330449,1742286660776,-223.828454,8.767e-05,2]
[356330450,1742286660785,-500.0,8.767e-05,2]
[356330451,1742286660795,-223.828454,8.767e-05,2]
[356330452,1742286660804,-223.828463,8.767e-05,2]
[356330453,1742286660814,-778.89,8.767e-05,2]
[356330454,1742286660824,-500.0,8.767e-05,2]
[356330455,1742286660834,-500.0,8.767e-05,2]
[356330456,1742286660844,-500.0,8.767e-05,2]
[356330457,1742286660854,-907.84,8.767e-05,2]
[356330458,1742286660864,-500.0,8.767e-05,2]
[356330459,1742286660874,-500.0,8.767e-05,2]
[356330460,1742286660884,-500.0,8.767e-05,2]
[356330461,1742286660895,-14498.22,8.767e-05,2]
[356330462,1742286660905,-763.96,8.767e-05,2]
[356330463,1742286660915,-500.0,8.767e-05,2]
[356330464,1742286660925,-500.0,8.767e-05,2]
[356330465,1742286660935,-500.0,8.767e-05,2]
[356330466,1742286660945,-2492.38,8.767e-05,2]
[356330467,1742286660956,-500.0,8.767e-05,2]
[356330468,1742286660966,-500.0,8.767e-05,2]
[356330469,1742286660976,-500.0,8.767e-05,2]
[356330470,1742286660986,-885.14,8.767e-05,2]
[356330471,1742286660997,-626.66,8.767e-05,2]
[356330472,1742286661006,-500.0,8.767e-05,2]
[356330473,1742286661019,-1236.95,8.767e-05,2]
[356330474,1742286661028,-500.0,8.767e-05,2]
[356330475,1742286661038,-500.0,8.767e-05,2]
[356330476,1742286661048,-500.0,8.767e-05,2]
[356330477,1742286661058,-1394.36,8.767e-05,2]
[356330478,1742286661067,-588.89391152,8.767e-05,2]
[356330479,1742286661077,-667.87,8.767e-05,2]
[356330480,1742286661087,-500.0,8.767e-05,2]
[356330481,1742286661097,-500.0,8.767e-05,2]
[356330482,1742286661108,-320.658099,8.767e-05,2]
[356330483,1742286661123,-522.92470585,8.767e-05,2]
[356330484,1742286661132,-320.658099,8.767e-05,2]
[356330485,1742286661142,-500.0,8.767e-05,2]
[356330486,1742286661154,-500.0,8.767e-05,2]
[356330487,1742286661164,-1394.43,8.767e-05,2]
[356330488,1742286661174,-500.0,8.767e-05,2]
[356330489,1742286661184,-5190.96,8.767e-05,2]
[356330490,1742286661195,-500.0,8.767e-05,2]
[356330491,1742286661205,-500.0,8.767e-05,2]
[356330492,1742286661216,-500.0,8.767e-05,2]
[356330493,1742286661226,-500.0,8.767e-05,2]
[356330494,1742286661236,-311.76694143,8.767e-05,2]
[356330495,1742286661247,-1898.09,8.767e-05,2]
[356330496,1742286661257,-277.14449456,8.767e-05,2]
[356330497,1742286661268,-500.0,8.767e-05,2]
[356330498,1742286661278,-500.0,8.767e-05,2]
[356330499,1742286661288,-500.0,8.767e-05,2]
[356330500,1742286661299,-505.21,8.767e-05,2]
[356330501,1742286661310,-604.25,8.767e-05,2]
[356330502,1742286661321,-500.0,8.767e-05,2]
[356330503,1742286661331,-500.0,8.767e-05,2]
[356330504,1742286661342,-687.55,8.767e-05,2]
[356330505,1742286661352,-1875.08,8.767e-05,2]
[356330506,1742286661363,-517.9,8.767e-05,2]
[356330507,1742286661372,-6229.78,8.767e-05,2]
[356330508,1742286661382,-500.0,8.767e-05,2]
[356330509,1742286661392,-500.0,8.767e-05,2]
[356330510,1742286661403,-500.0,8.767e-05,2]
[356330511,1742286661413,-500.0,8.767e-05,2]
[356330512,1742286661423,-10748.02,8.767e-05,2]
[356330513,1742286661433,-4015.9,8.767e-05,2]
[356330514,1742286661443,-500.0,8.767e-05,2]
[356330515,1742286661453,-500.0,8.767e-05,2]
[356330516,1742286661463,-7811.31,8.767e-05,2]
[356330517,1742286661473,-569.69778841,8.767e-05,2]
[356330518,1742286661483,-330.11318971,8.767e-05,2]
[356330519,1742286661492,-500.0,8.767e-05,2]
[356330520,1742286661502,-500.0,8.767e-05,2]
[356330521,1742286661511,-286.028766,8.767e-05,2]
[356330522,1742286661521,-500.0,8.767e-05,2]
[356330523,1742286661531,-1219.17,8.767e-05,2]
[356330524,1742286661541,-500.0,8.767e-05,2]
[356330525,1742286661550,-286.028773,8.767e-05,2]
[356330526,1742286661559,-500.0,8.767e-05,2]
[356330527,1742286661568,-5865.91,8.767e-05,2]
[356330528,1742286661579,-454.96680167,8.767e-05,2]
[356330529,1742286661589,-500.0,8.767e-05,2]
[356330530,1742286661598,-1567.61,8.767e-05,2]
[356330531,1742286661609,-500.0,8.767e-05,2]
[356330532,1742286661619,-500.0,8.767e-05,2]
[356330533,1742286661636,-500.0,8.767e-05,2]
[356330534,1742286661646,-2101.67,8.767e-05,2]
[356330535,1742286661657,-500.0,8.767e-05,2]
[356330536,1742286661667,-1103.93,8.767e-05,2]
[356330537,1742286661678,-500.0,8.767e-05,2]
[356330538,1742286661688,-500.0,8.767e-05,2]
[356330539,1742286661697,-500.0,8.767e-05,2]
[356330540,1742286661707,-500.0,8.767e-05,2]
[356330541,1742286661717,-500.0,8.767e-05,2]
[356330542,1742286661727,-1658.96,8.767e-05,2]
[356330543,1742286661736,-500.0,8.767e-05,2]
[356330544,1742286661745,-98083.34,8.767e-05,2]
[356330545,1742286661754,-500.0,8.767e-05,2]
[356330546,1742286661764,-500.0,8.767e-05,2]
[356330547,1742286661774,-656.05,8.767e-05,2]
[356330548,1742286661784,-500.0,8.767e-05,2]
[356330549,1742286661793,-500.0,8.767e-05,2]
[356330550,1742286661803,-2562.21,8.767e-05,2]
[356330551,1742286661813,-3833.09,8.767e-05,2]
[356330552,1742286661823,-500.0,8.767e-05,2]
[356330553,1742286661833,-1785.76,8.767e-05,2]
[356330554,1742286661843,-1141.65,8.767e-05,2]
[356330555,1742286661852,-151.0,8.767e-05,2]
[356330556,1742286661862,-500.0,8.767e-05,2]
[356330557,1742286661871,-6740.53,8.767e-05,2]